bitfinex/quotes_SOLUSD_20251201
["timestamp","ask_amount","ask_price","bid_price","bid_amount"]
[1764588597741,6.30670923,127.41,127.39,0.68]
[1764588598235,6.30670923,127.41,127.39,8.52985056]
[1764588598735,6.30670923,127.41,127.38,7.85052598]
[1764588599150,6.30670923,127.41,127.38,8.53052598]
[1764588599369,6.30670923,127.41,127.39,0.68]
[1764588599736,15.05570772,127.4,127.34,0.68]
[1764588600058,15.05570772,127.4,127.32,3.52670923]
[1764588600059,2.84670923,127.36,127.32,3.52670923]
[1764588600245,12.26994492,127.39,127.32,3.52670923]
[1764588600246,0.68,127.39,127.33,2.84670923]
[1764588600554,22.61557323,127.38,127.34,2.84670923]
[1764588600742,11.99422557,127.38,127.35,11.37864565]
[1764588601057,3.46,127.38,127.36,0.68]
[1764588601457,6.30670923,127.38,127.36,0.68]
[1764588601641,2.84670923,127.37,127.35,8.53193642]
[1764588601846,2.84670923,127.37,127.36,0.68]
[1764588602354,16.988864,127.36,127.31,8.05425819]
[1764588602532,4.450626,127.32,127.31,0.88]
[1764588602742,7.910626,127.33,127.31,0.88]
[1764588604965,24.91230379,127.34,127.31,0.88]
[1764588605264,3.46,127.33,127.31,0.88]
[1764588605967,7.910626,127.33,127.31,0.88]
[1764588606167,4.450626,127.33,127.31,0.88]
[1764588606395,7.910626,127.33,127.31,0.88]
[1764588606757,4.450626,127.33,127.31,0.88]
[1764588607070,7.910626,127.33,127.31,0.88]
[1764588607263,4.450626,127.33,127.32,0.68]
[1764588607563,35.5453029,127.34,127.32,0.68]
[1764588607744,12.30295496,127.36,127.32,5.130626]
[1764588607948,3.46,127.37,127.33,0.68]
[1764588608148,4.450626,127.36,127.33,0.68]
[1764588608876,4.450626,127.36,127.33,8.53304719]
[1764588609371,4.450626,127.36,127.34,0.68]
[1764588610261,7.910626,127.37,127.34,0.68]
[1764588610969,7.910626,127.37,127.35,7.85237534]
[1764588611170,3.46,127.37,127.35,7.85237534]
[1764588611464,7.910626,127.37,127.35,8.53237534]
[1764588612753,4.450626,127.36,127.34,0.68]
[1764588613067,5.130626,127.36,127.33,7.85300455]
[1764588613273,12.98363055,127.36,127.33,8.53300455]
[1764588613664,12.30363055,127.36,127.34,0.68]
[1764588613989,3.60216157,127.37,127.34,0.68]
[1764588614180,15.90579212,127.37,127.34,0.68]
[1764588614352,15.90579212,127.37,127.34,8.53280209]
[1764588614751,12.30363055,127.37,127.35,0.68]
[1764588615054,3.46,127.37,127.35,0.68]
[1764588615672,7.910626,127.37,127.35,0.68]
[1764588616355,4.450626,127.36,127.34,8.53280209]
[1764588616553,4.450626,127.36,127.34,0.68]
[1764588616752,4.450626,127.35,127.33,7.85331873]
[1764588616961,0.82216157,127.36,127.33,7.85331873]
[1764588616962,4.450626,127.34,127.33,8.53331873]
[1764588617957,4.450626,127.35,127.33,8.53331873]
[1764588619676,17.34790708,127.36,127.33,8.53331873]
[1764588619876,4.450626,127.35,127.33,8.53331873]
[1764588620877,4.450626,127.34,127.32,8.53422557]
[1764588621876,5.27278757,127.33,127.31,0.2]
[1764588622084,3.60216157,127.32,127.31,0.2]
[1764588622269,4.104369,127.32,127.31,0.88]
[1764588622465,3.46,127.33,127.31,0.88]
[1764588622779,7.910626,127.33,127.31,8.05484251]
[1764588622979,7.910626,127.33,127.31,8.73484251]
[1764588623158,4.450626,127.33,127.31,8.73484251]
[1764588623358,8.901252,127.33,127.31,8.73484251]
[1764588624267,8.901252,127.33,127.31,8.05484251]
[1764588624456,8.901252,127.33,127.32,0.68]
[1764588625280,8.901252,127.33,127.31,8.05484251]
[1764588625983,8.901252,127.33,127.31,8.73484251]
[1764588626467,12.361252,127.33,127.31,8.73484251]
[1764588626874,4.450626,127.32,127.31,0.2]
[1764588627281,20.90510163,127.33,127.31,0.2]
[1764588627458,5.150626,127.32,127.31,0.2]
[1764588627671,5.29278757,127.32,127.31,0.2]
[1764588627976,18.55335849,127.32,127.31,0.2]
[1764588628290,93.55335849,127.32,127.31,0.2]
[1764588628453,89.10273249,127.32,127.31,0.2]
[1764588628658,93.55335849,127.32,127.31,0.2]
[1764588629180,101.40758406,127.32,127.31,0.2]
[1764588630692,117.71644806,127.32,127.31,0.2]
[1764588631761,121.17644806,127.32,127.31,0.2]
[1764588633281,46.17644806,127.32,127.31,0.2]
[1764588633787,121.17644806,127.32,127.31,0.2]
[1764588635585,129.03405533,127.32,127.31,0.2]
[1764588636088,33.11857776,127.32,127.31,0.89]
[1764588636286,4.59278757,127.32,127.31,0.89]
[1764588637374,4.59278757,127.32,127.31,0.2]
[1764588637595,4.450626,127.33,127.31,0.89]
[1764588637784,3.46,127.32,127.31,0.89]
[1764588638169,4.450626,127.33,127.31,0.89]
[1764588638370,7.910626,127.33,127.31,0.89]
[1764588639693,3.46,127.33,127.31,0.89]
[1764588639998,4.450626,127.32,127.31,0.89]
[1764588642122,5.29278757,127.32,127.31,0.2]
[1764588642304,26.40758406,127.32,127.31,0.2]
[1764588644016,21.95695806,127.32,127.31,0.2]
[1764588644481,25.41695806,127.32,127.31,0.2]
[1764588646390,104.86758406,127.32,127.31,0.2]
[1764588649432,121.17644806,127.32,127.31,0.2]
[1764588649795,129.03351822,127.32,127.31,0.2]
[1764588650810,121.17644806,127.32,127.31,0.2]
[1764588651199,46.17644806,127.32,127.31,0.2]
[1764588651425,41.72582206,127.32,127.31,0.2]
[1764588651999,46.17644806,127.32,127.31,0.2]
[1764588652516,42.71644806,127.32,127.31,0.2]
[1764588652713,46.17644806,127.32,127.31,0.2]
[1764588655221,46.17644806,127.32,127.31,0.89]
[1764588655222,24.30525114,127.32,127.31,0.89]
[1764588655417,32.21587714,127.32,127.31,0.89]
[1764588656028,15.90701314,127.32,127.31,0.89]
[1764588656801,11.45638714,127.32,127.31,0.89]
[1764588657015,15.90701314,127.32,127.31,0.89]
[1764588658628,12.44701314,127.32,127.31,0.89]
[1764588658828,4.450626,127.32,127.31,0.89]
[1764588659128,71.0620872,127.34,127.31,0.89]
[1764588659129,7.910626,127.33,127.31,0.89]
[1764588659326,8.05278757,127.33,127.32,0.67]
[1764588659841,15.9063963,127.33,127.32,0.67]
[1764588660328,0.14216157,127.32,127.31,0.2]
[1764588660520,4.59278757,127.32,127.31,0.2]
[1764588661432,12.44701314,127.32,127.31,0.2]
[1764588662229,21.25695806,127.32,127.31,0.2]
[1764588662426,21.92695806,127.32,127.31,0.2]
[1764588664438,20.32557251,127.32,127.31,0.2]
[1764588664816,7.99638714,127.32,127.31,0.2]
[1764588665132,10.84562759,127.32,127.31,0.2]
[1764588665528,14.30562759,127.32,127.31,0.2]
[1764588666133,10.84562759,127.32,127.31,0.2]
[1764588666308,14.30562759,127.32,127.31,0.2]
[1764588667412,23.11557251,127.32,127.31,0.2]
[1764588669339,110.18253431,127.32,127.31,0.2]
[1764588669836,118.04020863,127.32,127.31,0.2]
[1764588670409,110.18253431,127.32,127.31,0.2]
[1764588670616,118.04020863,127.32,127.31,0.2]
[1764588670941,110.18253431,127.32,127.31,0.2]
[1764588671738,106.72253431,127.32,127.31,0.2]
[1764588672039,110.18253431,127.32,127.31,0.2]
[1764588672233,157.08253431,127.32,127.31,0.2]
[1764588672433,145.68557251,127.32,127.31,0.2]
[1764588672744,157.08253431,127.32,127.31,0.2]
[1764588673040,164.94020863,127.32,127.31,0.2]
[1764588676557,150.69400638,127.32,127.31,1e-08]
[1764588676721,239.94020863,127.32,127.31,1e-08]
[1764588686945,193.04020863,127.32,127.31,1e-08]
[1764588688646,103.12400638,127.32,127.31,1e-08]
[1764588688846,23.11557251,127.32,127.31,0.68000001]
[1764588689048,19.51341094,127.32,127.31,0.68000001]
[1764588689241,22.97341094,127.32,127.31,0.68000001]
[1764588689550,39.91123075,127.32,127.31,0.68000001]
[1764588689731,42.7604712,127.32,127.31,0.68000001]
[1764588689936,19.64489869,127.32,127.31,0.68000001]
[1764588690147,2.84924045,127.32,127.31,0.68000001]
[1764588690350,6.45140202,127.32,127.31,0.68000001]
[1764588691254,2.84924045,127.32,127.31,0.68000001]
[1764588691442,6.30924045,127.32,127.31,0.68000001]
[1764588691748,6.45140202,127.32,127.31,0.68000001]
[1764588692055,2.99140202,127.32,127.31,0.68000001]
[1764588692350,14.30562759,127.32,127.31,0.68000001]
[1764588692548,23.11557251,127.32,127.31,1e-08]
[1764588692755,34.51253431,127.32,127.31,1e-08]
[1764588693557,109.51253431,127.32,127.31,1e-08]
[1764588694653,117.36949109,127.32,127.31,1e-08]
[1764588694954,118.03949109,127.32,127.31,1e-08]
[1764588699539,91.308864,127.3,127.29,0.68]
[1764588699745,106.57021094,127.3,127.29,0.68]
[1764588700551,130.19318822,127.3,127.29,0.68]
[1764588700752,138.04864776,127.3,127.29,0.68]
[1764588703557,35.08059839,127.3,127.29,0.68]
[1764588703761,14.30686156,127.3,127.29,0.68]
[1764588703992,19.31553366,127.3,127.29,0.68]
[1764588704150,22.16477411,127.3,127.29,0.68]
[1764588709055,18.70477411,127.3,127.29,0.68]
[1764588709256,14.30686156,127.3,127.29,0.68]
[1764588709983,11.45762111,127.3,127.29,0.68]
[1764588710272,22.49651671,127.31,127.29,0.68]
[1764588710463,3.46,127.3,127.29,0.68]
[1764588713282,6.30924045,127.3,127.29,0.68]
[1764588713780,14.30686156,127.3,127.29,0.68]
[1764588714176,33.95445741,127.3,127.29,0.68]
[1764588716383,0.14216157,127.29,127.28,0.7]
[1764588716573,2.99140202,127.29,127.28,0.7]
[1764588718058,14.30747869,127.29,127.28,0.7]
[1764588720682,46.9,127.33,127.28,0.7]
[1764588720683,10.70322601,127.33,127.28,11.40552295]
[1764588720884,3.46,127.31,127.29,0.7]
[1764588721789,3.46,127.32,127.29,3.54924045]
[1764588722292,3.46,127.32,127.3,8.55545954]
[1764588722788,3.46,127.32,127.31,0.7]
[1764588723387,16.45102557,127.34,127.31,0.7]
[1764588723566,3.46,127.33,127.31,0.7]
[1764588723890,6.30924045,127.33,127.31,0.7]
[1764588724392,7.90945446,127.33,127.31,8.5546184]
[1764588724780,3.46,127.33,127.31,8.5546184]
[1764588724984,3.46,127.33,127.32,0.7]
[1764588727571,8.05161603,127.33,127.32,0.7]
[1764588727766,8.05161603,127.33,127.31,0.7]
[1764588729273,15.90532862,127.33,127.31,0.7]
[1764588729598,4.59161603,127.32,127.31,0.7]
[1764588732388,12.4458416,127.32,127.3,0.7]
[1764588732691,12.4458416,127.32,127.28,7.85665292]
[1764588732692,7.90945446,127.31,127.29,0.7]
[1764588733980,7.90945446,127.31,127.29,8.55605774]
[1764588734695,8.05161603,127.31,127.3,0.7]
[1764588737402,0.14216157,127.3,127.29,0.7]
[1764588737581,4.59161603,127.3,127.27,7.85704394]
[1764588737777,7.90945446,127.29,127.28,0.7]
[1764588738380,15.9076927,127.29,127.28,0.7]
[1764588738598,15.76553113,127.29,127.28,0.7]
[1764588743406,15.9076927,127.29,127.28,0.7]
[1764588744107,15.9076927,127.29,127.28,0.7]
[1764588745502,11.45823824,127.29,127.28,0.7]
[1764588745809,15.9076927,127.29,127.28,0.7]
[1764588747004,19.64549545,127.3,127.28,0.7]
[1764588747306,11.31526076,127.31,127.28,5.14945446]
[1764588747707,11.31526076,127.31,127.29,0.69]
[1764588749628,19.78576653,127.32,127.29,12.99525012]
[1764588749906,3.46,127.31,127.29,8.54579566]
[1764588750208,3.46,127.31,127.3,0.69]
[1764588751714,11.31579566,127.31,127.3,0.69]
[1764588751898,11.31579566,127.31,127.3,8.54545954]
[1764588752594,3.46,127.31,127.3,8.54545954]
[1764588756213,19.36741169,127.31,127.3,0.69]
[1764588756415,0.14216157,127.3,127.24,103.0]
[1764588756593,0.14216157,127.28,127.27,0.69]
[1764588756992,12.65159809,127.28,127.27,0.69]
[1764588757208,12.65159809,127.28,127.26,0.69]
[1764588757596,0.14216157,127.28,127.26,0.69]
[1764588757797,4.59161603,127.28,127.26,0.69]
[1764588758091,23.76513885,127.28,127.26,0.69]
[1764588758395,28.21459331,127.28,127.26,0.69]
[1764588759410,4.59161603,127.28,127.26,0.69]
[1764588759819,7.85830894,127.27,127.26,0.69]
[1764588760218,7.85830894,127.27,127.26,12.99738311]
[1764588760921,7.90945446,127.3,127.26,12.99738311]
[1764588761110,7.90945446,127.3,127.27,0.69]
[1764588761418,15.7677634,127.3,127.27,8.54724256]
[1764588761604,0.14216157,127.29,127.27,0.69]
[1764588761804,0.14216157,127.29,127.25,12.30741101]
[1764588762006,0.14216157,127.29,127.28,0.69]
[1764588762190,4.59161603,127.29,127.28,0.69]
[1764588764117,20.16356432,127.3,127.28,0.69]
[1764588764314,23.62356432,127.3,127.28,0.69]
[1764588764614,4.44945446,127.3,127.28,0.69]
[1764588764816,7.90945446,127.3,127.28,8.546526]
[1764588765022,3.46,127.3,127.28,8.546526]
[1764588765195,3.46,127.3,127.29,0.69]
[1764588765401,3.46,127.32,127.29,5.13945446]
[1764588765814,3.46,127.32,127.3,8.54545954]
[1764588766017,7.90945446,127.32,127.3,7.85545954]
[1764588766226,7.90945446,127.32,127.3,0.69]
[1764588766612,7.90945446,127.32,127.29,7.85602046]
[1764588766829,4.44945446,127.31,127.29,8.54602046]
[1764588767293,4.44945446,127.31,127.29,7.85602046]
[1764588767497,7.90945446,127.31,127.3,0.69]
[1764588767696,3.46,127.31,127.3,0.69]
[1764588768307,12.30378434,127.32,127.3,0.69]
[1764588768507,15.76378434,127.32,127.3,0.69]
[1764588769310,15.76378434,127.32,127.28,0.69]
[1764588769311,4.59161603,127.31,127.28,0.69]
[1764588769512,0.14216157,127.31,127.29,0.69]
[1764588769713,7.90945446,127.3,127.28,0.69]
[1764588770226,4.59161603,127.29,127.26,7.85781937]
[1764588770521,4.59161603,127.29,127.27,0.69]
[1764588773202,0.14216157,127.29,127.27,0.69]
[1764588773402,4.59161603,127.29,127.27,0.69]
[1764588773926,4.44945446,127.28,127.27,0.69]
[1764588774136,4.59161603,127.29,127.27,0.69]
[1764588774332,4.44945446,127.28,127.26,0.69]
[1764588774631,8.05161603,127.28,127.27,0.69]
[1764588774932,0.14216157,127.27,127.25,0.69]
[1764588775137,4.59161603,127.27,127.23,0.2]
[1764588775425,3.46,127.26,127.23,0.89]
[1764588775737,3.46,127.26,127.23,13.19920246]
[1764588776031,3.46,127.26,127.24,0.67]
[1764588776339,19.768864,127.28,127.25,4.44945446]
[1764588776511,4.44945446,127.3,127.25,4.44945446]
[1764588776512,3.46,127.29,127.25,4.44945446]
[1764588776711,20.41865692,127.29,127.26,0.67]
[1764588776934,4.44945446,127.28,127.26,0.67]
[1764588777729,12.30621099,127.28,127.26,0.67]
[1764588779528,4.44945446,127.27,127.26,0.67]
[1764588779713,4.44945446,127.27,127.25,7.85852406]
[1764588779909,4.44945446,127.27,127.26,0.67]
[1764588780226,31.47973381,127.28,127.26,0.67]
[1764588780532,31.47973381,127.28,127.23,36.15831774]
[1764588780533,8.75161603,127.27,127.24,0.67]
[1764588780716,4.44945446,127.26,127.24,0.67]
[1764588781308,4.44945446,127.25,127.23,0.2]
[1764588781514,12.30802443,127.25,127.23,0.87]
[1764588781904,7.85856997,127.25,127.23,0.87]
[1764588782205,12.30802443,127.25,127.23,0.87]
[1764588783237,34.94274169,127.27,127.24,0.67]
[1764588783544,39.39219615,127.27,127.24,0.67]
[1764588783841,4.44945446,127.26,127.24,0.67]
[1764588785434,34.94274169,127.27,127.24,8.52907747]
[1764588785636,11.31790412,127.27,127.24,8.52907747]
[1764588785944,24.29643605,127.27,127.25,0.67]
[1764588786343,19.84698159,127.27,127.25,0.67]
[1764588786642,6.31034063,127.27,127.25,0.67]
[1764588787045,14.16785635,127.27,127.25,0.67]
[1764588787223,2.85034063,127.26,127.25,0.67]
[1764588788631,2.85034063,127.27,127.25,0.67]
[1764588788830,3.46,127.27,127.25,0.67]
[1764588790419,6.31034063,127.27,127.25,0.67]
[1764588790726,14.16768012,127.27,127.25,0.67]
[1764588793354,2.85034063,127.26,127.23,8.05971509]
[1764588793524,2.85034063,127.26,127.24,0.67]
[1764588794722,34.62702216,127.27,127.24,0.67]
[1764588795046,2.85034063,127.26,127.24,0.67]
[1764588795654,2.85034063,127.26,127.24,8.52903889]
[1764588795947,2.85034063,127.26,127.25,0.67]
[1764588796245,18.76745013,127.27,127.25,0.67]
[1764588796442,22.22745013,127.27,127.25,0.67]
[1764588797114,2.85034063,127.26,127.25,0.67]
[1764588798533,14.37011064,127.27,127.25,0.67]
[1764588798860,6.31034063,127.27,127.25,0.67]
[1764588799545,14.16767124,127.27,127.25,0.67]
[1764588800843,11.31733061,127.27,127.25,0.67]
[1764588801044,14.16767124,127.27,127.25,0.67]
[1764588803857,10.7094276,127.28,127.25,8.52846107]
[1764588804167,33.80770719,127.29,127.25,8.52846107]
[1764588804370,57.42882446,127.29,127.26,0.67]
[1764588805372,2.85034063,127.27,127.26,0.67]
[1764588805857,2.85034063,127.28,127.26,0.67]
[1764588809160,23.62111727,127.29,127.26,8.52757942]
[1764588809360,3.46,127.3,127.26,11.37792005]
[1764588809547,3.46,127.3,127.27,0.67]
[1764588810064,3.46,127.3,127.27,8.52692087]
[1764588810257,3.46,127.3,127.28,0.67]
[1764588810762,6.31034063,127.3,127.28,0.67]
[1764588811164,14.16582585,127.3,127.28,0.67]
[1764588811465,6.31034063,127.3,127.28,0.67]
[1764588812567,14.16585326,127.3,127.28,0.67]
[1764588814463,3.57034063,127.29,127.26,0.67]
[1764588814669,2.85034063,127.29,127.26,0.67]
[1764588815585,6.31034063,127.3,127.26,3.52034063]
[1764588816070,14.16589426,127.3,127.27,0.67]
[1764588816650,14.16589426,127.3,127.27,8.52714508]
[1764588817145,2.9925022,127.32,127.28,0.67]
[1764588817348,3.60216157,127.32,127.28,0.67]
[1764588817655,3.60216157,127.32,127.28,3.52034063]
[1764588817860,10.84682462,127.32,127.28,0.67]
[1764588818069,14.30682462,127.32,127.29,0.67]
[1764588818579,15.02682462,127.32,127.29,0.67]
[1764588818872,2.85034063,127.31,127.29,0.67]
[1764588819373,2.85034063,127.31,127.28,7.85635449]
[1764588819374,2.85034063,127.3,127.27,7.85704435]
[1764588819550,2.85034063,127.3,127.28,0.67]
[1764588819874,2.85034063,127.31,127.28,0.67]
[1764588820252,3.57034063,127.31,127.28,0.67]
[1764588821675,2.85034063,127.31,127.28,8.52624754]
[1764588822078,8.71648399,127.32,127.28,8.52624754]
[1764588822275,14.30682462,127.32,127.29,0.67]
[1764588825155,14.88333261,127.34,127.3,0.67]
[1764588825973,14.88333261,127.34,127.31,7.85484251]
[1764588826748,10.70333261,127.34,127.31,7.85484251]
[1764588826954,14.16333261,127.34,127.32,0.67]
[1764588830279,6.31034063,127.34,127.32,8.52419651]
[1764588831080,7.03034063,127.34,127.31,7.85456959]
[1764588831281,7.03034063,127.34,127.31,8.52456959]
[1764588831282,6.31034063,127.34,127.31,8.52456959]
[1764588831595,7.03034063,127.34,127.31,8.52456959]
[1764588831874,6.31034063,127.34,127.31,7.85456959]
[1764588832079,6.31034063,127.34,127.32,0.67]
[1764588832674,6.31034063,127.34,127.3,27.49375588]
[1764588832882,7.03034063,127.34,127.31,0.67]
[1764588836667,7.03034063,127.34,127.31,8.52433811]
[1764588838191,14.88334223,127.34,127.31,8.52433811]
[1764588838484,7.03034063,127.34,127.31,8.52433811]
[1764588840282,2.85034063,127.33,127.31,8.52433811]
[1764588841079,3.7025022,127.32,127.28,0.71]
[1764588841275,0.71,127.34,127.3,10.70580017]
[1764588841471,3.46,127.33,127.3,10.70580017]
[1764588841671,3.46,127.33,127.31,0.71]
[1764588843286,6.31034063,127.33,127.31,0.71]
[1764588843888,6.31034063,127.33,127.31,8.56483545]
[1764588845582,8.56302362,127.34,127.31,8.56483545]
[1764588845765,2.85034063,127.33,127.31,8.56483545]
[1764588846391,4.44968178,127.33,127.31,8.56483545]
[1764588847491,4.44968178,127.33,127.31,0.71]
[1764588849790,0.71,127.32,127.29,0.71]
[1764588849971,4.44968178,127.31,127.29,0.71]
[1764588850868,5.15968178,127.32,127.29,0.71]
[1764588851070,13.01444855,127.32,127.29,0.71]
[1764588851270,4.59184335,127.31,127.27,27.626059]
[1764588851471,4.44968178,127.3,127.28,0.71]
[1764588851766,4.44968178,127.29,127.25,0.71]
[1764588851970,0.85216157,127.29,127.26,0.71]
[1764588852170,4.44968178,127.28,127.26,0.71]
[1764588856988,11.4587449,127.29,127.26,0.71]
[1764588857188,15.90842668,127.29,127.26,0.71]
[1764588857395,16.61842668,127.29,127.26,0.71]
[1764588859397,16.61842668,127.29,127.26,8.56787763]
[1764588859598,15.90842668,127.29,127.26,8.56787763]
[1764588859797,15.90842668,127.29,127.27,0.71]
[1764588860199,20.75854578,127.32,127.27,0.71]
[1764588860402,4.44968178,127.32,127.28,4.44968178]
[1764588860601,0.14216157,127.32,127.29,0.71]
[1764588861104,15.76345775,127.33,127.29,5.15968178]
[1764588861410,11.31377597,127.33,127.29,13.01519178]
[1764588861698,11.31377597,127.33,127.3,0.71]
[1764588862912,15.76345775,127.33,127.3,8.56543661]
[1764588863089,15.76345775,127.33,127.31,0.71]
[1764588863408,8.70521977,127.34,127.31,0.71]
[1764588863615,3.46,127.33,127.31,0.71]
[1764588869310,0.69,127.32,127.29,20.3098288]
[1764588869618,0.69,127.32,127.3,0.67]
[1764588870320,4.44968178,127.32,127.3,0.67]
[1764588870693,8.59968178,127.33,127.3,0.67]
[1764588871198,16.45329939,127.33,127.3,0.67]
[1764588871410,16.45329939,127.33,127.3,8.52535372]
[1764588872326,4.44968178,127.32,127.3,0.67]
[1764588873225,4.44968178,127.32,127.3,8.52540343]
[1764588874204,4.44968178,127.32,127.3,0.67]
[1764588874516,5.13968178,127.32,127.29,8.52587126]
[1764588874724,4.44968178,127.32,127.3,0.67]
[1764588875437,12.14590153,127.34,127.3,0.67]
[1764588875605,0.69,127.36,127.32,4.44968178]
[1764588875931,8.59968178,127.36,127.32,0.67]
[1764588876142,4.15,127.36,127.32,8.52406947]
[1764588876347,0.14216157,127.34,127.31,8.52440716]
[1764588876512,3.46,127.33,127.31,8.52440716]
[1764588877731,3.46,127.34,127.32,0.67]
[1764588878025,5.13968178,127.35,127.32,0.67]
[1764588878209,8.59968178,127.35,127.32,8.52400415]
[1764588879505,16.308864,127.37,127.33,0.67]
[1764588879701,24.90854578,127.37,127.33,5.11968178]
[1764588879905,24.90854578,127.37,127.34,0.67]
[1764588881316,32.75968949,127.37,127.34,0.67]
[1764588881517,32.75968949,127.37,127.34,8.5229253]
[1764588881930,4.44968178,127.36,127.34,8.5229253]
[1764588882233,5.13968178,127.36,127.34,7.8529253]
[1764588882437,27.62000771,127.37,127.33,7.85360873]
[1764588882647,4.44968178,127.36,127.33,8.52360873]
[1764588882814,5.13968178,127.36,127.33,8.52360873]
[1764588884022,3.46,127.35,127.33,8.52360873]
[1764588884428,3.46,127.35,127.33,0.67]
[1764588884612,8.59968178,127.35,127.32,8.5239073]
[1764588885306,4.44968178,127.34,127.32,8.5239073]
[1764588886832,16.45230882,127.35,127.32,8.5239073]
[1764588887529,15.76230882,127.35,127.32,7.8539073]
[1764588887739,5.28184335,127.34,127.31,8.52484251]
[1764588888313,5.28184335,127.34,127.32,0.67]
[1764588888829,13.13488219,127.34,127.32,0.67]
[1764588889208,13.13488219,127.34,127.31,7.85484251]
[1764588889415,12.44488219,127.34,127.32,0.67]
[1764588890135,13.13488219,127.34,127.31,0.67]
[1764588891743,8.68520041,127.34,127.31,5.11968178]
[1764588892215,0.14216157,127.34,127.31,12.97407896]
[1764588892416,3.60216157,127.34,127.32,0.67]
[1764588897644,3.60216157,127.34,127.32,8.52416112]
[1764588898949,4.59184335,127.34,127.32,8.52416112]
[1764588899162,8.05184335,127.34,127.32,8.52416112]
[1764588900623,3.60216157,127.34,127.32,8.52416112]
[1764588903151,4.29216157,127.34,127.32,8.52416112]
[1764588903623,0.69,127.33,127.3,7.85545954]
[1764588903822,8.05184335,127.32,127.3,7.85545954]
[1764588904030,4.44968178,127.31,127.29,7.855923]
[1764588904234,3.46,127.3,127.29,8.535923]
[1764588905636,8.05184335,127.32,127.29,8.535923]
[1764588905948,3.46,127.32,127.3,0.68]
[1764588906248,3.46,127.33,127.3,5.12968178]
[1764588906427,3.46,127.33,127.3,0.68]
[1764588907957,3.46,127.33,127.31,7.85484251]
[1764588908333,3.46,127.33,127.31,8.53484251]
[1764588910750,11.39052448,127.34,127.31,8.53484251]
[1764588910751,2.84749392,127.34,127.32,0.68]
[1764588910957,6.30749392,127.34,127.32,0.68]
[1764588911543,6.99749392,127.34,127.31,8.53484251]
[1764588912056,14.8504859,127.34,127.31,8.53484251]
[1764588913259,12.00299198,127.34,127.31,8.53484251]
[1764588913555,14.8504859,127.34,127.31,8.53484251]
[1764588913758,14.8504859,127.34,127.31,0.68]
[1764588914258,14.8504859,127.34,127.3,7.85518121]
[1764588914259,2.84749392,127.32,127.3,0.68]
[1764588914446,0.69,127.33,127.3,0.68]
[1764588914629,2.84749392,127.31,127.3,0.68]
[1764588914833,2.84749392,127.31,127.29,0.68]
[1764588915042,2.84749392,127.3,127.29,0.68]
[1764588915357,2.84749392,127.3,127.28,0.68]
[1764588916669,3.67965549,127.29,127.24,3.46]
[1764588916879,8.80994492,127.3,127.26,0.68]
[1764588917037,6.30749392,127.32,127.27,2.84749392]
[1764588917561,6.30749392,127.32,127.28,0.68]
[1764588918064,6.30749392,127.33,127.29,7.85607667]
[1764588918375,3.46,127.33,127.29,27.49626835]
[1764588918559,3.46,127.33,127.3,0.68]
[1764588919367,6.30749392,127.33,127.3,0.68]
[1764588920968,6.30749392,127.33,127.3,8.53525467]
[1764588921266,6.30749392,127.33,127.31,0.68]
[1764588928553,3.46,127.33,127.31,0.68]
[1764588928852,6.30749392,127.33,127.31,0.68]
[1764588929872,2.84749392,127.33,127.31,0.68]
[1764588930172,2.84749392,127.34,127.31,8.53451904]
[1764588930775,25.33517952,127.34,127.32,0.72]
[1764588931970,33.18825557,127.34,127.32,0.72]
[1764588932161,33.89825557,127.34,127.32,0.72]
[1764588932472,26.04517952,127.34,127.32,0.72]
[1764588932770,25.33517952,127.34,127.32,0.72]
[1764588932944,33.18824379,127.34,127.32,0.72]
[1764588936696,2.84749392,127.33,127.32,0.72]